fUST/lending_fUST_20260111
["ID","MTS","AMOUNT","RATE_DAILY","PERIOD"]
[401308151,1768123839975,-6379.47903635,0.00023418,2]
[401308153,1768123839984,-339.0,0.00023601,2]
[401308155,1768123839994,-2096.819629,0.00023762,2]
[401308157,1768123840003,-1000.0,0.00024049,10]
[401308159,1768123840013,-1000.0,0.00024049,10]
[401308161,1768123840022,-1000.0,0.00024049,10]
[401308163,1768123840031,-9967.9359943,0.00024149,2]
[401308165,1768123840040,-1664.76,0.000244,14]
[401308167,1768123840049,-272.01210464,0.0002459,2]
[401308169,1768123840058,-630.83049355,0.0002465,2]
[401308171,1768123840070,-172.0,0.00024877,14]
[401308173,1768123840081,-70605.4978566,0.000249,2]
[401308175,1768123840090,-2675.46555144,0.00025,2]
[401308177,1768123840099,-20757.85955183,0.00025,2]
[401308179,1768123840108,-10364.0,0.00025,2]
[401308181,1768123840118,-500.0,0.00025,2]
[401308183,1768123840127,-2074.08935166,0.00025,2]
[401308185,1768123840136,-759.6161654,0.00025,2]
[401308187,1768123840145,-1000.0,0.000255,2]
[401308189,1768123840154,-366.0,0.00025601,2]
[401308191,1768123840163,-1000.0,0.00026454,30]
[401308193,1768123840173,-1000.0,0.00026454,30]
[401308194,1768123840182,-1000.0,0.00026454,30]
[401308197,1768123840191,-715.0,0.00026454,30]
[401308198,1768123840201,-16539.737552,0.00026569,2]
[401308200,1768123840210,-3999.99999901,0.00027,2]
[401308203,1768123840221,-151.0,0.00027196,2]
[401308204,1768123840230,-151.0,0.00027196,2]
[401308207,1768123840240,-151.0,0.00027196,2]
[401308209,1768123840250,-151.0,0.00027196,2]
[401308210,1768123840259,-151.0,0.00027196,2]
[401308212,1768123840267,-185.0,0.00027196,2]
[401308214,1768123840276,-394.08412848,0.0002739,7]
[401308216,1768123840285,-393.0,0.00027601,2]
[401308218,1768123840294,-151.0,0.00027689,3]
[401308220,1768123840303,-15330.50011171,0.00028,2]
[401308222,1768123840313,-520.4204079,0.00028,2]
[401308224,1768123840323,-429431.6619482,0.0002876,14]
[401308226,1768123840331,-2412.5313746,0.00029,10]
[401308228,1768123840341,-1000.0,0.00029099,30]
[401308230,1768123840352,-1000.0,0.00029099,30]
[401308232,1768123840362,-1000.0,0.00029099,30]
[401308234,1768123840371,-2665.91589527,0.00029513,2]
[401308236,1768123840380,-151.0,0.00029564,4]
[401308238,1768123840389,-420.0,0.00029601,2]
[401308240,1768123840399,-5008.97139185,0.0003,10]
[401308242,1768123840408,-89030.96900453,0.0003,30]
[401308244,1768123840417,-258.50979211,0.0003,10]
[401308246,1768123840426,-151.0,0.0003,14]
[401308248,1768123840435,-1789.56874809,0.00030015,2]
[401308250,1768123840444,-300.0,0.00030137,5]
[401308252,1768123840453,-2099.00986107,0.0003014,120]
[401308254,1768123840462,-155.0,0.00030356,39]
[401308256,1768123840471,-151.0,0.00031439,5]
[401308258,1768123840480,-447.0,0.00031601,2]
[401308260,1768123840490,-737.12467857,0.00031852,7]
[401308262,1768123840502,-1664.76,0.00032,14]
[401308264,1768123840511,-162.09527137,0.00032,120]
[401308266,1768123840520,-578944.75907156,0.00032874,2]
[401308268,1768123840529,-225.859576,0.00032874,31]
[401308270,1768123840538,-151.0,0.00032874,31]
[401308272,1768123840548,-151.0,0.00032874,31]
[401308274,1768123840557,-1889.842077,0.00032874,31]
[401308276,1768123840566,-1889.842077,0.00032874,31]
[401308278,1768123840574,-1889.842077,0.00032874,31]
[401308280,1768123840583,-1889.842077,0.00032874,31]
[401308282,1768123840592,-151.0,0.00032874,7]
[401308284,1768123840601,-151.0,0.00032874,7]
[401308285,1768123840610,-152.567384,0.00032874,31]
[401308288,1768123840620,-151.0,0.00032874,31]
[401308289,1768123840629,-151.0,0.00032874,31]
[401308291,1768123840639,-151.0,0.00032874,31]
[401308293,1768123840649,-151.0,0.00032874,31]
[401308295,1768123840658,-151.0,0.00032874,31]
[401308297,1768123840667,-151.0,0.00032874,31]
[401308299,1768123840678,-728.329358,0.00032874,31]
[401308301,1768123840688,-728.329358,0.00032874,31]
[401308303,1768123840697,-728.329358,0.00032874,31]
[401308305,1768123840706,-728.329358,0.00032874,31]
[401308308,1768123840716,-151.0,0.00032874,31]
[401308309,1768123840725,-151.0,0.00032874,31]
[401308312,1768123840735,-156.419626,0.00032874,31]
[401308314,1768123840744,-151.0,0.00032874,2]
[401308316,1768123840754,-151.0,0.00032874,31]
[401308318,1768123840763,-999.0,0.00032876,120]
[401308320,1768123840773,-534.23,0.00032877,10]
[401308321,1768123840781,-542.05,0.00032877,10]
[401308323,1768123840791,-451.71,0.00032877,10]
[401308325,1768123840800,-300.0,0.00032877,5]
[401308327,1768123840808,-450.0,0.00032877,5]
[401308329,1768123840818,-1762.55867719,0.00033,4]
[401308331,1768123840827,-198.80282405,0.00033,30]
[401308333,1768123840836,-180.93086226,0.000332,117]
[401308335,1768123840845,-180.93086222,0.000332,117]
[401308336,1768123840854,-180.93086222,0.000332,117]
[401308338,1768123840863,-180.93086222,0.000332,117]
[401308339,1768123840871,-1045039.0068,0.0003322,30]
[401308340,1768123840880,-151.0,0.00033315,6]
[401308341,1768123840889,-600.0,0.00033425,5]
[401308342,1768123840899,-5142.43646252,0.00033488,30]
[401308343,1768123840908,-474.0,0.00033601,120]
[401308344,1768123840917,-210.0,0.00033699,5]
[401308345,1768123840926,-999.0,0.00033972,120]
[401308346,1768123840936,-900.0,0.00033973,5]
[401308347,1768123840945,-691.0,0.00033984,30]
[401308348,1768123840954,-725.0,0.00033984,30]
[401308349,1768123840963,-547.0,0.00033984,30]
[401308350,1768123840972,-2770.72795551,0.00033998,7]
[401308351,1768123840981,-415.97,0.00034038,60]
[401308352,1768123840991,-415.97,0.00034138,60]
[401308353,1768123841000,-415.97,0.00034238,60]
[401308354,1768123841009,-165.11729757,0.00034246,120]
[401308355,1768123841019,-415.97,0.00034338,60]
[401308356,1768123841028,-415.97,0.00034438,60]
[401308358,1768123841037,-34463.2894326,0.00034514,2]
[401308360,1768123841046,-1200.0,0.00034521,5]
[401308362,1768123841055,-270.0,0.00034521,5]
[401308364,1768123841064,-1095.40809829,0.00034535,3]
[401308365,1768123841074,-271.40103972,0.00034535,3]
[401308367,1768123841083,-207209.03662732,0.0003465,2]
[401308385,1768123843968,-271.78641056,0.000193,2]
[401308398,1768123845810,-12707.58358944,0.000193,2]
[401308399,1768123845820,-12979.37,0.000221,2]
[401308400,1768123845830,-2613.32206114,0.000255,2]
[401308412,1768124043410,153.0,0.00030137,120]
[401308413,1768124279778,194.13,5.974e-05,2]
[401308414,1768124280112,194.13,5.974e-05,2]
[401308415,1768124403885,616.44,5e-05,2]
[401308416,1768124404443,616.44,5.5e-05,2]
[401308417,1768124405007,616.44,6e-05,2]
[401308418,1768124405578,616.44,6.5e-05,2]
[401308419,1768124406134,616.44,7.1e-05,2]
[401308420,1768124406697,616.44,7.6e-05,2]
[401308421,1768124407296,616.44,8.1e-05,2]
[401308422,1768124407751,616.44,8.6e-05,2]
[401308423,1768124437724,616.36,5e-05,2]
[401308445,1768124970570,300.0,8.579e-05,2]
[401308446,1768125003929,160.21,5e-05,2]
[401308540,1768125038088,-616.44,9.1e-05,2]
[401308541,1768125038098,-547.0,9.1e-05,2]
[401308542,1768125038108,-410.48475466,9.225e-05,2]
[401308543,1768125038118,-500.0,9.423e-05,2]
[401308544,1768125038128,-500.0,9.423e-05,2]
[401308545,1768125038137,-2273.59364617,9.495e-05,2]
[401308546,1768125038147,-337.446,9.503e-05,2]
[401308547,1768125038157,-177.386,9.503e-05,2]
[401308548,1768125038167,-1200.0,9.559e-05,2]
[401308549,1768125038177,-500.0,9.56e-05,2]
[401308550,1768125038189,-500.0,9.56e-05,2]
[401308551,1768125038199,-500.0,9.594e-05,2]
[401308552,1768125038208,-517.95251012,9.594e-05,2]
[401308553,1768125038218,-500.0,9.594e-05,2]
[401308554,1768125038227,-500.0,9.594e-05,2]
[401308555,1768125038237,-500.0,9.594e-05,2]
[401308556,1768125038247,-500.0,9.594e-05,2]
[401308557,1768125038257,-500.0,9.594e-05,2]
[401308558,1768125038267,-500.0,9.594e-05,2]
[401308559,1768125038279,-500.0,9.594e-05,2]
[401308560,1768125038288,-500.0,9.594e-05,2]
[401308561,1768125038298,-500.0,9.594e-05,2]
[401308562,1768125038307,-650.37806997,9.594e-05,2]
[401308563,1768125038316,-500.0,9.594e-05,2]
[401308564,1768125038325,-181.74043875,9.594e-05,2]
[401308565,1768125038338,-318.25956125,9.594e-05,2]
[401308566,1768125038347,-500.0,9.594e-05,2]
[401308567,1768125038357,-500.0,9.594e-05,2]
[401308568,1768125038366,-500.0,9.594e-05,2]
[401308569,1768125038376,-500.0,9.594e-05,2]
[401308570,1768125038386,-500.0,9.594e-05,2]
[401308571,1768125038395,-500.0,9.594e-05,2]
[401308572,1768125038405,-500.0,9.594e-05,2]
[401308573,1768125038415,-500.0,9.594e-05,2]
[401308574,1768125038425,-500.0,9.594e-05,2]
[401308575,1768125038435,-500.0,9.594e-05,2]
[401308576,1768125038444,-500.0,9.594e-05,2]
[401308577,1768125038453,-500.0,9.594e-05,2]
[401308578,1768125038462,-500.0,9.594e-05,2]
[401308579,1768125038472,-191.90507331,9.594e-05,2]
[401308580,1768125038481,-500.0,9.594e-05,2]
[401308581,1768125038490,-500.0,9.594e-05,2]
[401308582,1768125038499,-500.0,9.594e-05,2]
[401308583,1768125038509,-300.0,9.594e-05,2]
[401308584,1768125038519,-1000000.0,9.595e-05,2]
[401308585,1768125038528,-616.44,9.6e-05,2]
[401308586,1768125038538,-50000.0,9.616e-05,2]
[401308587,1768125038548,-500.0,9.616e-05,2]
[401308588,1768125038558,-2194.0,9.616e-05,2]
[401308589,1768125038567,-500.0,9.697e-05,2]
[401308590,1768125038576,-237.35985221,9.697e-05,2]
[401308591,1768125038586,-500.0,9.697e-05,2]
[401308592,1768125038594,-500.0,9.697e-05,2]
[401308593,1768125038603,-2870.56440792,9.697e-05,2]
[401308594,1768125038612,-500.0,9.753e-05,2]
[401308595,1768125038621,-2194.0,9.753e-05,2]
[401308596,1768125038631,-500.00000003,9.834e-05,2]
[401308597,1768125038641,-500.0,9.834e-05,2]
[401308598,1768125038650,-250.0,9.834e-05,2]
[401308599,1768125038659,-500.0,9.89e-05,2]
[401308600,1768125038669,-2194.0,9.89e-05,2]
[401308601,1768125038678,-300.0,9.89e-05,2]
[401308602,1768125038688,-300.0,9.89e-05,2]
[401308603,1768125038698,-300.0,9.89e-05,2]
[401308604,1768125038707,-300.0,9.89e-05,2]
[401308605,1768125038716,-300.0,9.89e-05,2]
[401308606,1768125038726,-300.0,9.89e-05,2]
[401308607,1768125038736,-300.0,9.89e-05,2]
[401308608,1768125038746,-300.0,9.89e-05,2]
[401308609,1768125038756,-300.0,9.89e-05,2]
[401308610,1768125038766,-300.0,9.89e-05,2]
[401308611,1768125038776,-300.0,9.89e-05,2]
[401308612,1768125038786,-300.0,9.89e-05,2]
[401308613,1768125038796,-300.0,9.89e-05,2]
[401308614,1768125038806,-300.0,9.89e-05,2]
[401308615,1768125038816,-300.0,9.89e-05,2]
[401308616,1768125038826,-600.0,9.89e-05,2]
[401308617,1768125038835,-500.0,9.971e-05,2]
[401308618,1768125038846,-500.0,9.971e-05,2]
[401308619,1768125038855,-333.99,0.0001,2]
[401308620,1768125038865,-2194.0,0.00010027,2]
[401308621,1768125038876,-616.44,0.000101,2]
[401308622,1768125038886,-500.0,0.00010108,2]
[401308623,1768125038896,-2194.0,0.00010164,2]
[401308624,1768125038907,-333.99,0.000102,2]
[401308625,1768125038917,-500.0,0.00010245,2]
[401308626,1768125038927,-500.0,0.00010245,2]
[401308627,1768125038937,-2194.0,0.00010301,2]
[401308628,1768125038946,-500.0,0.00010382,2]
[401308629,1768125038957,-333.99,0.000104,2]
[401308630,1768125038966,-2194.0,0.00010438,2]
[401308631,1768125038976,-500.0,0.00010519,2]
[401308632,1768125038986,-500.0,0.00010519,2]
[401308633,1768125038996,-420.0,0.00010553,2]
[401308634,1768125039006,-2194.0,0.00010575,2]
[401308635,1768125039016,-333.99,0.000106,2]
[401308636,1768125039025,-616.44,0.000106,2]
[401308637,1768125039035,-500.0,0.00010656,2]
[401308638,1768125039044,-2194.0,0.00010712,2]
[401308639,1768125039053,-500.0,0.00010793,2]
[401308640,1768125039062,-500.0,0.00010793,2]
[401308641,1768125039072,-333.99,0.000108,2]
[401308642,1768125039082,-2194.0,0.00010849,2]
[401308643,1768125039092,-720.0,0.00010879,2]
[401308644,1768125039102,-500.0,0.0001093,2]
[401308645,1768125039111,-999.0,0.00010959,2]
[401308646,1768125039121,-2194.0,0.00010986,2]
[401308647,1768125039134,-333.99,0.00011,2]
[401308648,1768125039144,-151.0,0.00011,2]
[401308649,1768125039154,-151.0,0.00011,2]
[401308650,1768125039165,-500.0,0.00011067,2]
[401308651,1768125039174,-500.0,0.00011067,2]
[401308652,1768125039186,-2194.0,0.00011123,2]
[401308653,1768125039196,-616.44,0.000112,2]
[401308654,1768125039206,-152.72644825,0.00011204,2]
[401308655,1768125039216,-484.37201049,0.00011225,2]
[401308656,1768125039226,-2194.0,0.0001126,2]
[401308657,1768125039235,-500.0,0.00011341,2]
[401308658,1768125039245,-2194.0,0.00011397,2]
[401308659,1768125039255,-2194.0,0.00011534,2]
[401308660,1768125039265,-587.0,0.00011608,2]
[401308661,1768125039275,-500.0,0.00011615,2]
[401308662,1768125039284,-587.0,0.00011629,2]
[401308663,1768125039294,-159.48,0.00011629,2]
[401308664,1768125039303,-159.47,0.00011629,2]
[401308665,1768125039312,-2194.0,0.00011671,2]
[401308666,1768125039322,-616.44,0.000117,2]
[401308667,1768125039332,-2194.0,0.00011808,2]
[401308668,1768125039342,-384.00760187,0.00011888,2]
[401308669,1768125039352,-159.4,0.00011931,2]
[401308670,1768125039362,-2194.0,0.00011945,2]
[401308671,1768125039372,-864.0,0.00011966,2]
[401308672,1768125039382,-250.0,0.00012024,2]
[401308673,1768125039392,-2194.0,0.00012082,2]
[401308674,1768125039402,-616.44,0.000122,2]
[401308675,1768125039411,-2194.0,0.00012219,2]
[401308676,1768125039420,-440.65,0.00012329,2]
[401308677,1768125039431,-367.21,0.00012329,2]
[401308678,1768125039441,-306.0,0.00012329,2]
[401308679,1768125039451,-255.0,0.00012329,2]
[401308680,1768125039461,-212.5,0.00012329,2]
[401308681,1768125039470,-177.09,0.00012329,2]
[401308682,1768125039480,-885.46,0.00012329,2]
[401308683,1768125039489,-369.72,0.00012329,2]
[401308684,1768125039499,-834.96925059,0.00012329,2]
[401308685,1768125039508,-834.96925059,0.00012329,2]
[401308686,1768125039518,-834.96925059,0.00012329,2]
[401308687,1768125039528,-834.96925059,0.00012329,2]
[401308688,1768125039537,-834.96925059,0.00012329,2]
[401308689,1768125039547,-834.96925059,0.00012329,2]
[401308690,1768125039557,-834.96925059,0.00012329,2]
[401308691,1768125039566,-834.96925059,0.00012329,2]
[401308692,1768125039576,-834.96925059,0.00012329,2]
[401308693,1768125039586,-834.96925059,0.00012329,2]
[401308694,1768125039596,-834.96925059,0.00012329,2]
[401308695,1768125039606,-834.96925059,0.00012329,2]
[401308696,1768125039617,-834.96925059,0.00012329,2]
[401308697,1768125039627,-834.96925059,0.00012329,2]
[401308698,1768125039637,-834.96925059,0.00012329,2]
[401308699,1768125039647,-834.96925059,0.00012329,2]
[401308700,1768125039658,-834.96925059,0.00012329,2]
[401308701,1768125039668,-834.96925059,0.00012329,2]
[401308702,1768125039679,-834.96925059,0.00012329,2]
[401308703,1768125039691,-834.96925059,0.00012329,2]
[401308704,1768125039700,-834.96925059,0.00012329,2]
[401308705,1768125039709,-834.96925059,0.00012329,2]
[401308706,1768125039719,-834.96925059,0.00012329,2]
[401308707,1768125039729,-834.96925059,0.00012329,2]
[401308708,1768125039739,-834.96925059,0.00012329,2]
[401308709,1768125039749,-834.96925059,0.00012329,2]
[401308710,1768125039759,-834.96925059,0.00012329,2]
[401308712,1768125039768,-834.96925059,0.00012329,2]
[401308714,1768125039778,-834.96925059,0.00012329,2]
[401308715,1768125039787,-834.96925059,0.00012329,2]
[401308716,1768125039797,-834.96925059,0.00012329,2]
[401308717,1768125039904,-834.96925059,0.00012329,2]
[401308718,1768125039915,-834.96925059,0.00012329,2]
[401308720,1768125039925,-834.96925059,0.00012329,2]
[401308722,1768125039935,-834.96925059,0.00012329,2]
[401308724,1768125039946,-834.96925059,0.00012329,2]
[401308726,1768125039957,-834.96925059,0.00012329,2]
[401308727,1768125039967,-834.96925059,0.00012329,2]
[401308729,1768125039977,-834.96925059,0.00012329,2]
[401308731,1768125039986,-834.96925059,0.00012329,2]
[401308733,1768125039996,-834.96925059,0.00012329,2]
[401308735,1768125040006,-834.96925059,0.00012329,2]
[401308737,1768125040015,-834.96925059,0.00012329,2]
[401308739,1768125040026,-834.96925059,0.00012329,2]
[401308741,1768125040036,-834.96925059,0.00012329,2]
[401308743,1768125040046,-834.96925059,0.00012329,2]
[401308745,1768125040057,-834.96925059,0.00012329,2]
[401308747,1768125040068,-834.96925059,0.00012329,2]
[401308749,1768125040078,-834.96925059,0.00012329,2]
[401308751,1768125040090,-834.96925059,0.00012329,2]
[401308752,1768125040103,-834.96925059,0.00012329,2]
[401308754,1768125040113,-834.96925059,0.00012329,2]
[401308756,1768125040123,-834.96925059,0.00012329,2]
[401308758,1768125040133,-834.96925059,0.00012329,2]
[401308761,1768125040144,-834.96925059,0.00012329,2]
[401308762,1768125040153,-834.96925059,0.00012329,2]
[401308764,1768125040163,-834.96925059,0.00012329,2]
[401308766,1768125040173,-834.96925059,0.00012329,2]
[401308768,1768125040182,-834.96925059,0.00012329,2]
[401308770,1768125040196,-834.96925059,0.00012329,2]
[401308772,1768125040206,-834.96925059,0.00012329,2]
[401308775,1768125040215,-834.96925059,0.00012329,2]
[401308776,1768125040225,-834.96925059,0.00012329,2]
[401308779,1768125040234,-834.96925059,0.00012329,2]
[401308780,1768125040244,-834.96925059,0.00012329,2]
[401308782,1768125040253,-834.96925059,0.00012329,2]
[401308784,1768125040262,-834.96925059,0.00012329,2]
[401308786,1768125040275,-2194.0,0.00012356,2]
[401308789,1768125040285,-2194.0,0.00012493,2]
[401308791,1768125040294,-369.72,0.00012603,2]
[401308792,1768125040303,-2194.0,0.0001263,2]
[401308794,1768125040316,-616.44,0.000127,2]
[401308796,1768125040324,-2209.1166099,0.00012767,2]
[401308798,1768125040334,-823.0,0.00012769,2]
[401308800,1768125040343,-369.72,0.00012877,2]
[401308802,1768125040352,-369.72,0.00013151,2]
[401308804,1768125040362,-1000.0,0.00013163,2]
[401308806,1768125040371,-616.44,0.000132,2]
[401308808,1768125040380,-558.25926633,0.00013225,2]
[401308810,1768125040389,-500.0,0.00013273,2]
[401308812,1768125040399,-500.0,0.00013273,2]
[401308814,1768125040408,-500.0,0.00013273,2]
[401308816,1768125040418,-500.0,0.00013273,2]
[401308818,1768125040427,-500.0,0.00013273,2]
[401308821,1768125040436,-500.0,0.00013273,2]
[401308823,1768125040446,-500.0,0.00013273,2]
[401308825,1768125040455,-500.24269708,0.00013273,2]
[401308827,1768125040465,-500.0,0.00013273,2]
[401308829,1768125040475,-500.0,0.00013273,2]
[401308831,1768125040484,-500.0,0.00013273,2]
[401308833,1768125040494,-500.0,0.00013273,2]
[401308835,1768125040503,-500.0,0.00013273,2]
[401308838,1768125040513,-500.0,0.00013273,2]
[401308839,1768125040523,-500.0,0.00013273,2]
[401308841,1768125040533,-500.0,0.00013273,2]
[401308843,1768125040542,-500.0,0.00013273,2]
[401308846,1768125040552,-500.0,0.00013273,2]
[401308848,1768125040563,-500.0,0.00013273,2]
[401308850,1768125040572,-500.0,0.00013273,2]
[401308852,1768125040581,-501.02698451,0.00013273,2]
[401308853,1768125040590,-500.0,0.00013273,2]
[401308855,1768125040599,-500.0,0.00013273,2]
[401308857,1768125040609,-500.0,0.00013273,2]
[401308859,1768125040619,-500.0,0.00013273,2]
[401308861,1768125040628,-500.0,0.00013273,2]
[401308863,1768125040637,-500.0,0.00013273,2]
[401308865,1768125040647,-500.0,0.00013273,2]
[401308867,1768125040656,-500.0,0.00013273,2]
[401308869,1768125040665,-500.0,0.00013273,2]
[401308871,1768125040675,-630.69173533,0.00013273,2]
[401308873,1768125040684,-500.0,0.00013273,2]
[401308875,1768125040693,-500.0,0.00013273,2]
[401308877,1768125040702,-500.0,0.00013273,2]
[401308879,1768125040711,-500.0,0.00013273,2]
[401308881,1768125040721,-500.0,0.00013273,2]
[401308883,1768125040731,-500.0,0.00013273,2]
[401308885,1768125040741,-495.22027723,0.00013273,2]
[401308887,1768125040750,-500.29461734,0.00013273,2]
[401308889,1768125040760,-500.0,0.00013273,2]
[401308891,1768125040769,-500.0,0.00013273,2]
[401308893,1768125040778,-500.0,0.00013273,2]
[401308895,1768125040787,-402.502339,0.00013273,2]
[401308897,1768125040796,-500.0,0.00013273,2]
[401308899,1768125040805,-500.0,0.00013273,2]
[401308901,1768125040814,-500.0,0.00013273,2]
[401308903,1768125040823,-500.0,0.00013273,2]
[401308905,1768125040832,-501.21467235,0.00013273,2]
[401308907,1768125040841,-500.0,0.00013273,2]
[401308909,1768125040852,-500.0,0.00013273,2]
[401308910,1768125040861,-500.0,0.00013273,2]
[401308912,1768125040871,-206.51680322,0.00013273,2]
[401308914,1768125040880,-160.21,0.000134,2]
[401308916,1768125040889,-369.75,0.00013425,2]
[401308918,1768125040899,-166.66666666,0.00013573,2]
[401308920,1768125040908,-1000.0,0.00013698,2]
[401308922,1768125040919,-1000.0,0.00013698,2]
[401308924,1768125040928,-1000.0,0.00013698,2]
[401308926,1768125040937,-1000.0,0.00013698,2]
[401308928,1768125040947,-1000.0,0.00013698,2]
[401308930,1768125040956,-1000.0,0.00013698,2]
[401308932,1768125040965,-593.71236514,0.00013698,2]
[401308934,1768125040975,-500.0,0.00013698,2]
[401308936,1768125040984,-500.0,0.00013698,2]
[401308938,1768125040993,-500.0,0.00013698,2]
[401308940,1768125041003,-500.0,0.00013698,2]
[401308942,1768125041012,-500.0,0.00013698,2]
[401308944,1768125041021,-500.0,0.00013698,2]
[401308946,1768125041034,-500.0,0.00013698,2]
[401308948,1768125041043,-374.07409846,0.00013698,2]
[401308950,1768125041053,-500.0,0.00013698,2]
[401308952,1768125041063,-500.0,0.00013698,2]
[401308955,1768125041072,-500.0,0.00013698,2]
[401308957,1768125041082,-500.0,0.00013698,2]
[401308958,1768125041091,-500.0,0.00013698,2]
[401308961,1768125041100,-500.0,0.00013698,2]
[401308962,1768125041110,-500.0,0.00013698,2]
[401308964,1768125041119,-534.57834013,0.00013698,2]
[401308966,1768125041129,-150.1,0.00013699,2]
[401308968,1768125041138,-2096.819629,0.00013699,2]
[401308970,1768125041147,-12011.786733,0.00013699,2]
[401308972,1768125041157,-1000.0,0.00013699,2]
[401308974,1768125041166,-500.0,0.00013699,2]
[401308976,1768125041175,-252.81793801,0.00013699,2]
[401308978,1768125041184,-500.0,0.00013699,2]
[401308980,1768125041196,-500.0,0.00013699,2]
[401308982,1768125041205,-500.0,0.00013699,2]
[401308984,1768125041214,-500.0,0.00013699,2]
[401308986,1768125041224,-500.0,0.00013699,2]
[401308988,1768125041233,-500.0,0.00013699,2]
[401308990,1768125041242,-500.0,0.00013699,2]
[401308992,1768125041250,-250.0,0.00013699,2]
[401308993,1768125041259,-500.93038909,0.00013699,2]
[401308995,1768125041268,-500.0,0.00013699,2]
[401308997,1768125041278,-500.0,0.00013699,2]
[401308999,1768125041287,-500.0,0.00013699,2]
[401309001,1768125041296,-500.0,0.00013699,2]
[401309003,1768125041306,-500.0,0.00013699,2]
[401309005,1768125041315,-413.61388111,0.00013699,2]
[401309007,1768125041326,-500.31275461,0.00013699,2]
[401309009,1768125041335,-500.0,0.00013699,2]
[401309011,1768125041344,-500.0,0.00013699,2]
[401309013,1768125041353,-611.85295008,0.00013699,2]
[401309015,1768125041362,-500.0,0.00013699,2]
[401309017,1768125041371,-500.0,0.00013699,2]
[401309019,1768125041380,-500.0,0.00013699,2]
[401309020,1768125041389,-500.0,0.00013699,2]
[401309022,1768125041398,-500.0,0.00013699,2]
[401309024,1768125041408,-504.31837873,0.00013699,2]
[401309026,1768125041417,-500.0,0.00013699,2]
[401309028,1768125041426,-500.0,0.00013699,2]
[401309030,1768125041435,-500.0,0.00013699,2]
[401309032,1768125041444,-500.0,0.00013699,2]
[401309034,1768125041453,-500.0,0.00013699,2]
[401309036,1768125041462,-500.0,0.00013699,2]
[401309038,1768125041471,-500.0,0.00013699,2]
[401309040,1768125041480,-500.0,0.00013699,2]
[401309042,1768125041489,-500.0,0.00013699,2]
[401309044,1768125041500,-500.0,0.00013699,2]
[401309046,1768125041510,-252.75899042,0.00013699,2]
[401309047,1768125041519,-159.05967354,0.00013699,2]
[401309049,1768125041527,-500.0,0.00013699,2]
[401309051,1768125041536,-500.0,0.00013699,2]
[401309053,1768125041545,-500.0,0.00013699,2]
[401309055,1768125041554,-500.0,0.00013699,2]
[401309057,1768125041563,-500.0,0.00013699,2]
[401309059,1768125041572,-192.77974704,0.00013699,2]
[401309060,1768125041581,-500.0,0.00013699,2]
[401309061,1768125041590,-500.0,0.00013699,2]
[401309063,1768125041599,-500.0,0.00013699,2]
[401309065,1768125041609,-500.0,0.00013699,2]
[401309067,1768125041618,-500.0,0.00013699,2]
[401309069,1768125041629,-500.0,0.00013699,2]
[401309071,1768125041638,-500.0,0.00013699,2]
[401309072,1768125041647,-500.0,0.00013699,2]
[401309074,1768125041656,-441.79967602,0.00013699,2]
[401309076,1768125041665,-500.0,0.00013699,2]
[401309078,1768125041674,-345.73139261,0.00013699,2]
[401309080,1768125041684,-295.9151759,0.00013699,2]